[Event "Early-Titled-Tuesday-Blitz-February-20-2024"]
[Site "Chess.com"]
[Date "2024.02.20"]
[Round "10"]
[White "manitodeplomo"]
[Black "BardArtem"]
[Result "1-0"]
[WhiteElo "2642"]
[BlackElo "2760"]
[TimeControl "180+1"]
[EndTime "9:58:54 PST"]
[Termination "manitodeplomo won by checkmate"]

1. d4 {[%clk 0:03:00.9]} 1... Nf6 {[%clk 0:02:59.6]} 2. c4 {[%clk 0:03:01.3]}
2... b6 {[%clk 0:03:00]} 3. Nf3 {[%clk 0:03:00.6]} 3... Bb7 {[%clk 0:03:00.6]}
4. g3 {[%clk 0:03:00.2]} 4... g6 {[%clk 0:03:01.1]} 5. Bg2 {[%clk 0:02:59.9]}
5... Bg7 {[%clk 0:03:01.6]} 6. Nc3 {[%clk 0:03:00.4]} 6... O-O {[%clk 0:03:02]}
7. Qc2 {[%clk 0:02:59.8]} 7... d5 {[%clk 0:03:00.1]} 8. Ne5 {[%clk 0:02:56.9]}
8... Nbd7 {[%clk 0:02:53.5]} 9. O-O {[%clk 0:02:47]} 9... e6 {[%clk 0:02:48.6]}
10. Rd1 {[%clk 0:02:43.1]} 10... c6 {[%clk 0:02:34.5]} 11. Bg5 {[%clk
0:02:31.4]} 11... h6 {[%clk 0:02:28.2]} 12. Bxf6 {[%clk 0:02:29.9]} 12... Nxf6
{[%clk 0:02:28.6]} 13. e4 {[%clk 0:02:26.4]} 13... Re8 {[%clk 0:02:18.9]} 14.
exd5 {[%clk 0:02:15.7]} 14... cxd5 {[%clk 0:02:13]} 15. b4 {[%clk 0:01:37.3]}
15... a5 {[%clk 0:02:05.9]} 16. Rab1 {[%clk 0:01:28.7]} 16... axb4 {[%clk
0:01:59.4]} 17. Rxb4 {[%clk 0:01:29.6]} 17... Rb8 {[%clk 0:01:27.5]} 18. Rdb1
{[%clk 0:01:17.9]} 18... Ba8 {[%clk 0:01:18.4]} 19. c5 {[%clk 0:01:15.2]} 19...
Ne4 {[%clk 0:01:06]} 20. Nxe4 {[%clk 0:01:05.9]} 20... dxe4 {[%clk 0:01:06.9]}
21. Bxe4 {[%clk 0:00:57.8]} 21... Bxe5 {[%clk 0:01:00.5]} 22. dxe5 {[%clk
0:00:54.6]} 22... Rc8 {[%clk 0:00:55.1]} 23. c6 {[%clk 0:00:41.1]} 23... Qg5
{[%clk 0:00:43.2]} 24. f4 {[%clk 0:00:39.7]} 24... Qe7 {[%clk 0:00:43.7]} 25.
Rxb6 {[%clk 0:00:39.8]} 25... Rc7 {[%clk 0:00:37.8]} 26. a4 {[%clk 0:00:22.3]}
26... Qa3 {[%clk 0:00:37.8]} 27. Kg2 {[%clk 0:00:19.2]} 27... Kg7 {[%clk
0:00:32.6]} 28. Qb3 {[%clk 0:00:13.2]} 28... Qc5 {[%clk 0:00:31.2]} 29. Qb4
{[%clk 0:00:12.6]} 29... Qe3 {[%clk 0:00:29.1]} 30. Re1 {[%clk 0:00:12.3]} 30...
Qxe1 {[%clk 0:00:06.1]} 31. Qxe1 {[%clk 0:00:12]} 31... Rd8 {[%clk 0:00:06.7]}
32. Qc3 {[%clk 0:00:11.7]} 32... h5 {[%clk 0:00:04.6]} 33. a5 {[%clk 0:00:11.7]}
33... h4 {[%clk 0:00:05.2]} 34. a6 {[%clk 0:00:11.5]} 34... Rdc8 {[%clk
0:00:03.2]} 35. Qc5 {[%clk 0:00:10.6]} 35... Kg8 {[%clk 0:00:03.1]} 36. Qb5
{[%clk 0:00:09.7]} 36... Kg7 {[%clk 0:00:02.6]} 37. Rb7 {[%clk 0:00:09.5]} 37...
Bxb7 {[%clk 0:00:02.6]} 38. axb7 {[%clk 0:00:09]} 38... Rd8 {[%clk 0:00:03.2]}
39. Qb6 {[%clk 0:00:08.4]} 39... Rd2+ {[%clk 0:00:02.5]} 40. Kf3 {[%clk
0:00:08.2]} 40... hxg3 {[%clk 0:00:01.9]} 41. hxg3 {[%clk 0:00:08]} 41... Re7
{[%clk 0:00:01.8]} 42. b8=Q {[%clk 0:00:06.4]} 42... g5 {[%clk 0:00:02.4]} 43.
fxg5 {[%clk 0:00:06.1]} 43... Rf2+ {[%clk 0:00:01.4]} 44. Kxf2 {[%clk
0:00:04.8]} 44... f5 {[%clk 0:00:02.3]} 45. Q8b7 {[%clk 0:00:02.1]} 45... Kf7
{[%clk 0:00:03.2]} 46. Qxe7+ {[%clk 0:00:02]} 46... Kg6 {[%clk 0:00:04.1]} 47.
Qbb7 {[%clk 0:00:02.7]} 47... Kh5 {[%clk 0:00:05]} 48. Qxe6 {[%clk 0:00:03]}
48... Kg4 {[%clk 0:00:05.9]} 49. Qxf5+ {[%clk 0:00:03.4]} 49... Kh5 {[%clk
0:00:06.2]} 50. Qh3+ {[%clk 0:00:03.3]} 50... Kxg5 {[%clk 0:00:05.9]} 51. Qh4#
{[%clk 0:00:03.7]} 1-0

[Event "Early-Titled-Tuesday-Blitz-February-20-2024"]
[Site "Chess.com"]
[Date "2024.02.20"]
[Round "10"]
[White "AnaKuchava"]
[Black "GrotBchess"]
[Result "0-1"]
[WhiteElo "2209"]
[BlackElo "2368"]
[TimeControl "180+1"]
[EndTime "9:58:55 PST"]
[Termination "GrotBchess won by resignation"]

1. d4 {[%clk 0:03:00.9]} 1... Nf6 {[%clk 0:02:59.2]} 2. Nf3 {[%clk 0:02:58.8]}
2... g6 {[%clk 0:02:59]} 3. c4 {[%clk 0:02:58]} 3... Bg7 {[%clk 0:02:59.2]} 4.
Nc3 {[%clk 0:02:57.5]} 4... d5 {[%clk 0:02:59.4]} 5. Bg5 {[%clk 0:02:57.1]} 5...
dxc4 {[%clk 0:02:53.6]} 6. e4 {[%clk 0:02:54]} 6... O-O {[%clk 0:02:53.7]} 7.
Bxc4 {[%clk 0:02:52.2]} 7... c5 {[%clk 0:02:52.5]} 8. d5 {[%clk 0:02:48.4]} 8...
h6 {[%clk 0:02:39.9]} 9. Bf4 {[%clk 0:02:42.5]} 9... a6 {[%clk 0:02:36.4]} 10.
a4 {[%clk 0:02:40.4]} 10... Nbd7 {[%clk 0:02:26]} 11. a5 {[%clk 0:02:36.4]}
11... Nh5 {[%clk 0:02:24.1]} 12. Be3 {[%clk 0:02:33.7]} 12... Qc7 {[%clk
0:02:22.1]} 13. Qd2 {[%clk 0:02:27.4]} 13... Rd8 {[%clk 0:02:16]} 14. Bxh6
{[%clk 0:02:19.1]} 14... Bxh6 {[%clk 0:02:14.6]} 15. Qxh6 {[%clk 0:02:20]} 15...
Qf4 {[%clk 0:02:14.7]} 16. Qxf4 {[%clk 0:02:18.6]} 16... Nxf4 {[%clk 0:02:15.6]}
17. g3 {[%clk 0:02:13.9]} 17... Nh5 {[%clk 0:02:14.4]} 18. e5 {[%clk 0:02:05]}
18... b5 {[%clk 0:02:10.3]} 19. axb6 {[%clk 0:02:03.2]} 19... Nxb6 {[%clk
0:02:10.2]} 20. Ba2 {[%clk 0:02:01.9]} 20... Bg4 {[%clk 0:02:09.4]} 21. Nd2
{[%clk 0:01:53.8]} 21... Ng7 {[%clk 0:02:09.1]} 22. f3 {[%clk 0:01:51.5]} 22...
Bf5 {[%clk 0:02:08.1]} 23. g4 {[%clk 0:01:49.8]} 23... Bd3 {[%clk 0:02:07.6]}
24. Nde4 {[%clk 0:01:13.3]} 24... c4 {[%clk 0:02:01.1]} 25. d6 {[%clk
0:01:10.9]} 25... exd6 {[%clk 0:01:57.1]} 26. Nxd6 {[%clk 0:00:43.6]} 26... Ne6
{[%clk 0:01:43.8]} 27. O-O-O {[%clk 0:00:35]} 27... Kg7 {[%clk 0:01:36.8]} 28.
h4 {[%clk 0:00:22.6]} 28... Nf4 {[%clk 0:01:21.7]} 29. h5 {[%clk 0:00:20.2]}
29... Rd7 {[%clk 0:01:07.7]} 30. h6+ {[%clk 0:00:17.4]} 30... Kh7 {[%clk
0:01:07.2]} 31. Nce4 {[%clk 0:00:17.4]} 31... Ne2+ {[%clk 0:00:56.3]} 32. Kd2
{[%clk 0:00:13.6]} 32... Bxe4 {[%clk 0:00:49.7]} 33. Kxe2 {[%clk 0:00:11.9]}
33... Bd3+ {[%clk 0:00:49.5]} 34. Kf2 {[%clk 0:00:10.1]} 34... Re7 {[%clk
0:00:47.5]} 35. f4 {[%clk 0:00:09.7]} 35... Nd5 {[%clk 0:00:44.2]} 36. Kg3
{[%clk 0:00:07.9]} 36... g5 {[%clk 0:00:39.8]} 37. fxg5 {[%clk 0:00:06.7]} 37...
Rxe5 {[%clk 0:00:38.4]} 38. Nxf7 {[%clk 0:00:06.7]} 38... Re3+ {[%clk
0:00:36.4]} 39. Kf2 {[%clk 0:00:05.2]} 39... Rf8 {[%clk 0:00:31.5]} 40. g6+
{[%clk 0:00:05.1]} 40... Kxg6 {[%clk 0:00:29.9]} 41. h7 {[%clk 0:00:05.5]} 41...
Rxf7+ {[%clk 0:00:29.8]} 42. Kg2 {[%clk 0:00:05.1]} 42... Rxh7 {[%clk
0:00:29.3]} 43. Rxh7 {[%clk 0:00:02.9]} 43... Kxh7 {[%clk 0:00:30.2]} 44. Rc1
{[%clk 0:00:02.4]} 44... Re2+ {[%clk 0:00:29.1]} 45. Kg3 {[%clk 0:00:01.9]}
45... Rxb2 {[%clk 0:00:28.2]} 46. Bxc4 {[%clk 0:00:02.6]} 46... Bxc4 {[%clk
0:00:26.8]} 47. Rxc4 {[%clk 0:00:03.5]} 47... Rb3+ {[%clk 0:00:24.7]} 48. Kh4
{[%clk 0:00:03.3]} 48... Rb6 {[%clk 0:00:22.3]} 49. Rd4 {[%clk 0:00:03.1]} 49...
Nf6 {[%clk 0:00:20.5]} 50. g5 {[%clk 0:00:03.1]} 50... Ne8 {[%clk 0:00:20.5]}
51. Rd7+ {[%clk 0:00:03.3]} 51... Ng7 {[%clk 0:00:20.6]} 52. Kg4 {[%clk
0:00:02.6]} 52... Rb4+ {[%clk 0:00:20.3]} 53. Kg3 {[%clk 0:00:02.3]} 53... a5
{[%clk 0:00:20.6]} 54. Ra7 {[%clk 0:00:02.9]} 54... a4 {[%clk 0:00:20.8]} 55.
Kf3 {[%clk 0:00:03.5]} 55... Kg6 {[%clk 0:00:20.6]} 56. Kg3 {[%clk 0:00:04.2]}
56... Nf5+ {[%clk 0:00:19.4]} 57. Kf2 {[%clk 0:00:05.1]} 57... Kxg5 {[%clk
0:00:19.7]} 58. Ra5 {[%clk 0:00:05.5]} 58... Kf4 {[%clk 0:00:19.1]} 0-1

[Event "Early-Titled-Tuesday-Blitz-February-20-2024"]
[Site "Chess.com"]
[Date "2024.02.20"]
[Round "10"]
[White "Huragan007"]
[Black "AsaHoffmann"]
[Result "1-0"]
[WhiteElo "2612"]
[BlackElo "2376"]
[TimeControl "180+1"]
[EndTime "9:59:01 PST"]
[Termination "Huragan007 won by checkmate"]

1. e4 {[%clk 0:03:00.9]} 1... d6 {[%clk 0:02:59]} 2. d4 {[%clk 0:03:00.9]} 2...
Nf6 {[%clk 0:02:58.6]} 3. Nc3 {[%clk 0:03:01.5]} 3... c6 {[%clk 0:02:58.4]} 4.
f3 {[%clk 0:02:55.9]} 4... Nbd7 {[%clk 0:02:57.7]} 5. Be3 {[%clk 0:02:56]} 5...
e5 {[%clk 0:02:57.6]} 6. Qd2 {[%clk 0:02:53.4]} 6... Be7 {[%clk 0:02:57.4]} 7.
O-O-O {[%clk 0:02:52.5]} 7... b5 {[%clk 0:02:57.4]} 8. g4 {[%clk 0:02:47.3]}
8... Qc7 {[%clk 0:02:56.9]} 9. g5 {[%clk 0:02:43.6]} 9... Nh5 {[%clk 0:02:55.1]}
10. d5 {[%clk 0:02:41.9]} 10... b4 {[%clk 0:02:51.6]} 11. dxc6 {[%clk
0:02:38.5]} 11... bxc3 {[%clk 0:02:51.1]} 12. cxd7+ {[%clk 0:02:38.7]} 12...
Bxd7 {[%clk 0:02:51]} 13. Qxc3 {[%clk 0:02:39.2]} 13... Qxc3 {[%clk 0:02:46.6]}
14. bxc3 {[%clk 0:02:40.1]} 14... Rc8 {[%clk 0:02:36.8]} 15. Kd2 {[%clk
0:02:39.9]} 15... Nf4 {[%clk 0:02:31.7]} 16. h4 {[%clk 0:02:30.7]} 16... Bd8
{[%clk 0:02:30.4]} 17. Bxf4 {[%clk 0:02:19.3]} 17... exf4 {[%clk 0:02:30]} 18.
Ne2 {[%clk 0:02:19.8]} 18... Ba5 {[%clk 0:02:29.3]} 19. Nxf4 {[%clk 0:02:15.9]}
19... Bxc3+ {[%clk 0:02:27.3]} 20. Ke3 {[%clk 0:02:15.4]} 20... Be5 {[%clk
0:02:23.3]} 21. Bd3 {[%clk 0:02:05.9]} 21... O-O {[%clk 0:02:19]} 22. Nd5 {[%clk
0:02:04.8]} 22... Rfe8 {[%clk 0:02:14.1]} 23. f4 {[%clk 0:02:04.3]} 23... Bb2
{[%clk 0:02:08.4]} 24. Rb1 {[%clk 0:02:03.5]} 24... Ba3 {[%clk 0:02:08.3]} 25.
Rb7 {[%clk 0:02:01.9]} 25... Bc6 {[%clk 0:02:06.1]} 26. Ne7+ {[%clk 0:01:45]}
26... Kf8 {[%clk 0:01:56.3]} 27. Nxc6 {[%clk 0:01:43.5]} 27... Rxc6 {[%clk
0:01:55.2]} 28. Rhb1 {[%clk 0:01:41.8]} 28... Bc5+ {[%clk 0:01:49.4]} 29. Kf3
{[%clk 0:01:40.7]} 29... Rec8 {[%clk 0:01:34]} 30. Bc4 {[%clk 0:01:34]} 30...
R6c7 {[%clk 0:01:32]} 31. Bd5 {[%clk 0:01:31.1]} 31... Bb6 {[%clk 0:01:31.2]}
32. Rxc7 {[%clk 0:01:25.1]} 32... Rxc7 {[%clk 0:01:30.3]} 33. c4 {[%clk
0:01:25.9]} 33... g6 {[%clk 0:01:28.3]} 34. h5 {[%clk 0:01:24.4]} 34... Kg7
{[%clk 0:01:24.7]} 35. h6+ {[%clk 0:01:18.7]} 35... Kf8 {[%clk 0:01:23.3]} 36.
f5 {[%clk 0:01:16.5]} 36... Rc5 {[%clk 0:01:02.8]} 37. Kg4 {[%clk 0:00:56.8]}
37... Ra5 {[%clk 0:01:01.8]} 38. fxg6 {[%clk 0:00:56.5]} 38... fxg6 {[%clk
0:01:01.4]} 39. Rf1+ {[%clk 0:00:56.3]} 39... Ke8 {[%clk 0:00:58.7]} 40. Rf6
{[%clk 0:00:32]} 40... Bc5 {[%clk 0:00:52.7]} 41. Rf7 {[%clk 0:00:28.9]} 41...
Rxa2 {[%clk 0:00:50.3]} 42. Rxh7 {[%clk 0:00:28.6]} 42... Rg2+ {[%clk
0:00:49.8]} 43. Kf4 {[%clk 0:00:22.7]} 43... Bd4 {[%clk 0:00:46.9]} 44. Bf7+
{[%clk 0:00:19.1]} 44... Kd8 {[%clk 0:00:45.5]} 45. Bxg6 {[%clk 0:00:20]} 45...
Be5+ {[%clk 0:00:44.8]} 46. Kf5 {[%clk 0:00:19]} 46... Rf2+ {[%clk 0:00:41.1]}
47. Ke6 {[%clk 0:00:19.1]} 47... Rg2 {[%clk 0:00:39.7]} 48. Rd7+ {[%clk
0:00:11.4]} 48... Kc8 {[%clk 0:00:39.4]} 49. Rxa7 {[%clk 0:00:08.2]} 49... Rxg5
{[%clk 0:00:37.8]} 50. Bf5 {[%clk 0:00:08.2]} 50... Rh5 {[%clk 0:00:35.6]} 51.
h7 {[%clk 0:00:07.7]} 51... Kb8 {[%clk 0:00:34.6]} 52. Rf7 {[%clk 0:00:07]}
52... Ka8 {[%clk 0:00:29.1]} 53. Kd5 {[%clk 0:00:07.4]} 53... Kb8 {[%clk
0:00:28.9]} 54. Kc6 {[%clk 0:00:07.7]} 54... Rh6 {[%clk 0:00:25.8]} 55. Kd5
{[%clk 0:00:05]} 55... Ka8 {[%clk 0:00:25.1]} 56. Rd7 {[%clk 0:00:05.2]} 56...
Kb8 {[%clk 0:00:24.9]} 57. Be6 {[%clk 0:00:04.8]} 57... Ka8 {[%clk 0:00:23.3]}
58. Bf5 {[%clk 0:00:04.5]} 58... Kb8 {[%clk 0:00:23.1]} 59. Re7 {[%clk 0:00:05]}
59... Ka8 {[%clk 0:00:23]} 60. Kc6 {[%clk 0:00:04.9]} 60... Kb8 {[%clk 0:00:23]}
61. Kb6 {[%clk 0:00:04.8]} 61... Ka8 {[%clk 0:00:20]} 62. Re8# {[%clk
0:00:04.7]} 1-0

[Event "Early-Titled-Tuesday-Blitz-February-20-2024"]
[Site "Chess.com"]
[Date "2024.02.20"]
[Round "10"]
[White "inagreV"]
[Black "Karttunen"]
[Result "0-1"]
[WhiteElo "2406"]
[BlackElo "2685"]
[TimeControl "180+1"]
[EndTime "9:59:05 PST"]
[Termination "Karttunen won on time"]

1. e4 {[%clk 0:03:00.9]} 1... e5 {[%clk 0:02:59.3]} 2. Nf3 {[%clk 0:03:00.7]}
2... Nc6 {[%clk 0:02:59.3]} 3. Bc4 {[%clk 0:03:01.2]} 3... Bc5 {[%clk
0:02:58.9]} 4. c3 {[%clk 0:03:00.5]} 4... Nf6 {[%clk 0:02:58]} 5. d3 {[%clk
0:03:00.8]} 5... a6 {[%clk 0:02:56.5]} 6. O-O {[%clk 0:03:00.5]} 6... Ba7 {[%clk
0:02:53.6]} 7. a4 {[%clk 0:02:57.3]} 7... d6 {[%clk 0:02:50.4]} 8. Re1 {[%clk
0:02:56.3]} 8... h6 {[%clk 0:02:47.3]} 9. Nbd2 {[%clk 0:02:51.9]} 9... O-O
{[%clk 0:02:46.9]} 10. h3 {[%clk 0:02:50.8]} 10... Ne7 {[%clk 0:02:44.5]} 11. d4
{[%clk 0:02:49.2]} 11... Ng6 {[%clk 0:02:43.3]} 12. Nf1 {[%clk 0:02:30.2]} 12...
exd4 {[%clk 0:02:32.5]} 13. cxd4 {[%clk 0:02:18.3]} 13... Nxe4 {[%clk
0:02:32.6]} 14. Qc2 {[%clk 0:01:40.3]} 14... d5 {[%clk 0:02:20.6]} 15. Bd3
{[%clk 0:01:39.1]} 15... f5 {[%clk 0:02:13.2]} 16. Ra3 {[%clk 0:01:35.2]} 16...
c6 {[%clk 0:02:06.4]} 17. Ng3 {[%clk 0:01:29.7]} 17... Be6 {[%clk 0:01:56.7]}
18. Nh5 {[%clk 0:01:26.2]} 18... Qd6 {[%clk 0:01:46.8]} 19. Rb3 {[%clk 0:01:21]}
19... Rf7 {[%clk 0:01:46.4]} 20. g3 {[%clk 0:01:15.3]} 20... b5 {[%clk
0:01:32.9]} 21. axb5 {[%clk 0:01:11.6]} 21... axb5 {[%clk 0:01:32.9]} 22. Ra3
{[%clk 0:01:10]} 22... Raf8 {[%clk 0:01:22.1]} 23. Nf4 {[%clk 0:01:08.2]} 23...
Nxf4 {[%clk 0:00:50.2]} 24. Bxf4 {[%clk 0:01:09.1]} 24... Qb4 {[%clk 0:00:32.5]}
25. Be5 {[%clk 0:00:36.7]} 25... Rc8 {[%clk 0:00:26.7]} 26. Rea1 {[%clk
0:00:34.5]} 26... Bb6 {[%clk 0:00:26.4]} 27. Ra8 {[%clk 0:00:25.8]} 27... Rff8
{[%clk 0:00:25.5]} 28. Rxc8 {[%clk 0:00:25.5]} 28... Rxc8 {[%clk 0:00:26.4]} 29.
Kg2 {[%clk 0:00:24.7]} 29... Qe7 {[%clk 0:00:25]} 30. Ra6 {[%clk 0:00:23.1]}
30... Qb7 {[%clk 0:00:25.1]} 31. Ra1 {[%clk 0:00:21.9]} 31... Ra8 {[%clk
0:00:23.2]} 32. Rc1 {[%clk 0:00:20.8]} 32... Rc8 {[%clk 0:00:23.1]} 33. h4
{[%clk 0:00:19.1]} 33... Ba5 {[%clk 0:00:22.3]} 34. Bf4 {[%clk 0:00:15.3]} 34...
Bb4 {[%clk 0:00:22.4]} 35. Ne5 {[%clk 0:00:15.5]} 35... c5 {[%clk 0:00:21.7]}
36. dxc5 {[%clk 0:00:15.5]} 36... Bxc5 {[%clk 0:00:21.3]} 37. Bxe4 {[%clk
0:00:12.3]} 37... dxe4 {[%clk 0:00:20.6]} 38. Qe2 {[%clk 0:00:12.3]} 38... e3+
{[%clk 0:00:20.7]} 39. f3 {[%clk 0:00:11.8]} 39... Bd4 {[%clk 0:00:19.1]} 40.
Rxc8+ {[%clk 0:00:11.2]} 40... Bxc8 {[%clk 0:00:19.4]} 41. Nd3 {[%clk
0:00:09.1]} 41... Be6 {[%clk 0:00:19.1]} 42. Bxe3 {[%clk 0:00:09.2]} 42... Bf6
{[%clk 0:00:16.6]} 43. Nc5 {[%clk 0:00:07.4]} 43... Qd5 {[%clk 0:00:16.8]} 44.
Nxe6 {[%clk 0:00:07.6]} 44... Qxe6 {[%clk 0:00:17]} 45. Qd2 {[%clk 0:00:07.7]}
45... Qb3 {[%clk 0:00:17.1]} 46. Bd4 {[%clk 0:00:07.6]} 46... Qd5 {[%clk
0:00:14.2]} 47. Bc3 {[%clk 0:00:05.9]} 47... Qxd2+ {[%clk 0:00:14.4]} 48. Bxd2
{[%clk 0:00:05.6]} 48... Bxb2 {[%clk 0:00:15.3]} 49. Bb4 {[%clk 0:00:05.6]}
49... Kf7 {[%clk 0:00:15.2]} 50. Kf2 {[%clk 0:00:04.8]} 50... Ke6 {[%clk
0:00:15.4]} 51. Ke2 {[%clk 0:00:04.9]} 51... Kd5 {[%clk 0:00:16]} 52. Kd3 {[%clk
0:00:05.1]} 52... h5 {[%clk 0:00:15.8]} 53. Be7 {[%clk 0:00:03]} 53... Be5
{[%clk 0:00:13.1]} 54. f4 {[%clk 0:00:02]} 54... Bd4 {[%clk 0:00:13]} 55. Bf8
{[%clk 0:00:02.5]} 55... g6 {[%clk 0:00:13]} 0-1

[Event "Early-Titled-Tuesday-Blitz-February-20-2024"]
[Site "Chess.com"]
[Date "2024.02.20"]
[Round "10"]
[White "Cambek64"]
[Black "AlexanderKing"]
[Result "0-1"]
[WhiteElo "2460"]
[BlackElo "2621"]
[TimeControl "180+1"]
[EndTime "9:59:07 PST"]
[Termination "AlexanderKing won by resignation"]

1. e4 {[%clk 0:02:46]} 1... e6 {[%clk 0:03:00.9]} 2. d3 {[%clk 0:02:45.5]} 2...
d5 {[%clk 0:03:00.4]} 3. Qe2 {[%clk 0:02:42.5]} 3... Nf6 {[%clk 0:02:55.7]} 4.
e5 {[%clk 0:02:41.6]} 4... Nfd7 {[%clk 0:02:54.9]} 5. f4 {[%clk 0:02:42.3]} 5...
c5 {[%clk 0:02:47.4]} 6. Nf3 {[%clk 0:02:42.9]} 6... Nc6 {[%clk 0:02:47]} 7. g3
{[%clk 0:02:43.4]} 7... b5 {[%clk 0:02:20.3]} 8. Bg2 {[%clk 0:02:40.7]} 8... Be7
{[%clk 0:02:14.3]} 9. O-O {[%clk 0:02:40.9]} 9... O-O {[%clk 0:01:33.7]} 10. Be3
{[%clk 0:02:41]} 10... d4 {[%clk 0:01:21.8]} 11. Bf2 {[%clk 0:02:40]} 11... Bb7
{[%clk 0:01:22.5]} 12. Nbd2 {[%clk 0:02:36.1]} 12... Nb6 {[%clk 0:01:18.3]} 13.
Ne4 {[%clk 0:02:36.1]} 13... Nd5 {[%clk 0:01:17.8]} 14. c3 {[%clk 0:02:20.1]}
14... Qb6 {[%clk 0:01:15.8]} 15. cxd4 {[%clk 0:02:19.6]} 15... cxd4 {[%clk
0:01:16.7]} 16. a3 {[%clk 0:02:08.5]} 16... Rfd8 {[%clk 0:01:14.9]} 17. h4
{[%clk 0:02:03.4]} 17... h6 {[%clk 0:01:06.3]} 18. h5 {[%clk 0:02:02.8]} 18...
Ne3 {[%clk 0:00:56]} 19. Bxe3 {[%clk 0:02:02.1]} 19... dxe3 {[%clk 0:00:56.9]}
20. Rae1 {[%clk 0:01:31.9]} 20... Rd7 {[%clk 0:00:32.3]} 21. Qxe3 {[%clk
0:01:32]} 21... Rxd3 {[%clk 0:00:28.4]} 22. Qxb6 {[%clk 0:01:29]} 22... axb6
{[%clk 0:00:29.3]} 23. Rc1 {[%clk 0:01:10.4]} 23... b4 {[%clk 0:00:26]} 24. axb4
{[%clk 0:01:09.2]} 24... Bxb4 {[%clk 0:00:25.1]} 25. Nf2 {[%clk 0:01:07]} 25...
Rd7 {[%clk 0:00:19]} 26. Rfd1 {[%clk 0:01:02.5]} 26... Rad8 {[%clk 0:00:18.7]}
27. Rxd7 {[%clk 0:01:00.7]} 27... Rxd7 {[%clk 0:00:19.6]} 28. g4 {[%clk
0:00:47.4]} 28... Bc5 {[%clk 0:00:19]} 29. Kf1 {[%clk 0:00:34]} 29... Nb4 {[%clk
0:00:18.6]} 30. Ne1 {[%clk 0:00:30.6]} 30... Ba6+ {[%clk 0:00:09.3]} 31. Kg1
{[%clk 0:00:30.2]} 31... Rd2 {[%clk 0:00:09.6]} 32. Rxc5 {[%clk 0:00:21.4]}
32... bxc5 {[%clk 0:00:10.5]} 33. b3 {[%clk 0:00:20.5]} 33... Rb2 {[%clk
0:00:09.1]} 34. Ne4 {[%clk 0:00:19.9]} 34... Rxb3 {[%clk 0:00:02.9]} 35. Nxc5
{[%clk 0:00:19.7]} 35... Rb1 {[%clk 0:00:03.6]} 36. Nxa6 {[%clk 0:00:17.2]}
36... Rxe1+ {[%clk 0:00:03.3]} 37. Kf2 {[%clk 0:00:17.2]} 37... Rb1 {[%clk
0:00:02.9]} 38. Nxb4 {[%clk 0:00:16.3]} 38... Rxb4 {[%clk 0:00:03.8]} 39. Ke3
{[%clk 0:00:15.3]} 39... Kf8 {[%clk 0:00:02.7]} 40. Bf3 {[%clk 0:00:13.6]} 40...
Ke7 {[%clk 0:00:03.1]} 41. Be2 {[%clk 0:00:11.7]} 41... Kd8 {[%clk 0:00:02.6]}
42. Bf3 {[%clk 0:00:12.2]} 42... Kc7 {[%clk 0:00:02.8]} 43. f5 {[%clk
0:00:11.6]} 43... Kd7 {[%clk 0:00:02.1]} 44. Be4 {[%clk 0:00:09.6]} 44... Ke7
{[%clk 0:00:01.9]} 45. Kf4 {[%clk 0:00:09.7]} 45... Ra4 {[%clk 0:00:02.2]} 46.
Ke3 {[%clk 0:00:07.7]} 46... f6 {[%clk 0:00:02.2]} 47. exf6+ {[%clk 0:00:06.5]}
47... Kxf6 {[%clk 0:00:03.1]} 48. fxe6 {[%clk 0:00:06.5]} 48... Kxe6 {[%clk
0:00:04]} 49. Kf4 {[%clk 0:00:05]} 49... Kf6 {[%clk 0:00:04.4]} 50. Kf3 {[%clk
0:00:02.6]} 50... Kg5 {[%clk 0:00:05.3]} 51. Bf5 {[%clk 0:00:02.7]} 51... Rf4+
{[%clk 0:00:05.2]} 52. Kg3 {[%clk 0:00:02.8]} 52... Rxf5 {[%clk 0:00:05.8]} 53.
gxf5 {[%clk 0:00:02.5]} 53... Kxf5 {[%clk 0:00:06.7]} 54. Kh4 {[%clk 0:00:01.8]}
54... Kf4 {[%clk 0:00:06.7]} 55. Kh3 {[%clk 0:00:02.5]} 55... Kg5 {[%clk
0:00:07.6]} 56. Kg3 {[%clk 0:00:02.6]} 56... Kxh5 {[%clk 0:00:08.5]} 57. Kh3
{[%clk 0:00:03]} 57... g5 {[%clk 0:00:09.4]} 0-1